fUSD/lending_fUSD_20250219
["ID","MTS","AMOUNT","RATE_DAILY","PERIOD"]
[353583083,1739934661190,-923.53,0.00016438,2]
[353583084,1739934661199,-500.0,0.00016438,2]
[353583085,1739934661209,-500.0,0.00016438,2]
[353583086,1739934661219,-1368.31,0.00016438,2]
[353583087,1739934661228,-2091.05,0.00016438,2]
[353583088,1739934661238,-501.47084378,0.00016438,2]
[353583089,1739934661249,-504.5032804,0.00016438,2]
[353583090,1739934661258,-1064.22,0.00016438,2]
[353583091,1739934661268,-500.0,0.00016438,2]
[353583092,1739934661278,-500.0,0.00016438,2]
[353583093,1739934661287,-2049.27,0.00016438,2]
[353583094,1739934661296,-2004.07,0.00016438,2]
[353583095,1739934661306,-1656.49,0.00016438,2]
[353583096,1739934661316,-500.0,0.00016438,2]
[353583097,1739934661326,-1655.14,0.00016438,2]
[353583098,1739934661335,-500.0,0.00016438,2]
[353583099,1739934661345,-500.0,0.00016438,2]
[353583100,1739934661356,-500.0,0.00016438,2]
[353583101,1739934661365,-500.0,0.00016438,2]
[353583102,1739934661374,-500.0,0.00016438,2]
[353583103,1739934661384,-576.13,0.00016438,2]
[353583104,1739934661393,-474.21977544,0.00016438,2]
[353583105,1739934661403,-500.0,0.00016438,2]
[353583106,1739934661413,-500.0,0.00016438,2]
[353583107,1739934661421,-500.0,0.00016438,2]
[353583108,1739934661431,-549.02,0.00016438,2]
[353583109,1739934661441,-500.0,0.00016438,2]
[353583110,1739934661450,-500.0,0.00016438,2]
[353583111,1739934661460,-2343.8,0.00016438,2]
[353583112,1739934661472,-2038.41,0.00016438,2]
[353583113,1739934661482,-1280.77,0.00016438,2]
[353583114,1739934661492,-500.0,0.00016438,2]
[353583115,1739934661502,-500.0,0.00016438,2]
[353583116,1739934661513,-500.0,0.00016438,2]
[353583117,1739934661523,-512.35669075,0.00016438,2]
[353583118,1739934661532,-151.0,0.00016438,2]
[353583119,1739934661543,-500.0,0.00016438,2]
[353583120,1739934661554,-1409.04,0.00016438,2]
[353583121,1739934661564,-791.09,0.00016438,2]
[353583122,1739934661574,-500.0,0.00016438,2]
[353583123,1739934661583,-500.0,0.00016438,2]
[353583124,1739934661593,-500.0,0.00016438,2]
[353583125,1739934661602,-2592.34,0.00016438,2]
[353583126,1739934661612,-500.0,0.00016438,2]
[353583127,1739934661622,-500.0,0.00016438,2]
[353583128,1739934661631,-500.0,0.00016438,2]
[353583129,1739934661641,-509.14093025,0.00016438,2]
[353583130,1739934661651,-500.0,0.00016438,2]
[353583131,1739934661661,-500.0,0.00016438,2]
[353583132,1739934661671,-500.0,0.00016438,2]
[353583133,1739934661680,-1632.3,0.00016438,2]
[353583134,1739934661690,-1672.21,0.00016438,2]
[353583135,1739934661700,-500.0,0.00016438,2]
[353583136,1739934661710,-500.0,0.00016438,2]
[353583137,1739934661719,-2456.17,0.00016438,2]
[353583138,1739934661729,-2236.76,0.00016438,2]
[353583139,1739934661739,-2572.46,0.00016438,2]
[353583140,1739934661749,-500.0,0.00016438,2]
[353583141,1739934661759,-500.0,0.00016438,2]
[353583142,1739934661768,-837.15,0.00016438,2]
[353583143,1739934661779,-573.22,0.00016438,2]
[353583144,1739934661789,-500.0,0.00016438,2]
[353583145,1739934661798,-500.0,0.00016438,2]
[353583146,1739934661807,-500.0,0.00016438,2]
[353583147,1739934661818,-700.69,0.00016438,2]
[353583148,1739934661827,-1709.88,0.00016438,2]
[353583149,1739934661837,-500.0,0.00016438,2]
[353583150,1739934661846,-972.02,0.00016438,2]
[353583151,1739934661856,-1555.04,0.00016438,2]
[353583152,1739934661866,-500.0,0.00016438,2]
[353583153,1739934661875,-500.0,0.00016438,2]
[353583154,1739934661886,-2423.04,0.00016438,2]
[353583155,1739934661895,-500.0,0.00016438,2]
[353583156,1739934661905,-500.0,0.00016438,2]
[353583157,1739934661915,-505.72806966,0.00016438,2]
[353583158,1739934661924,-500.0,0.00016438,2]
[353583159,1739934661934,-500.0,0.00016438,2]
[353583160,1739934661945,-2827.43,0.00016438,2]
[353583161,1739934661955,-500.0,0.00016438,2]
[353583162,1739934661965,-501.184419,0.00016438,2]
[353583163,1739934661975,-500.0,0.00016438,2]
[353583164,1739934661985,-889.37,0.00016438,2]
[353583165,1739934661995,-500.0,0.00016438,2]
[353583166,1739934662004,-1688.07,0.00016438,2]
[353583167,1739934662014,-1942.98,0.00016438,2]
[353583168,1739934662023,-230.36763631,0.00016438,2]
[353583169,1739934662033,-500.0,0.00016438,2]
[353583170,1739934662043,-536.61,0.00016438,2]
[353583171,1739934662052,-733.63,0.00016438,2]
[353583172,1739934662062,-500.0,0.00016438,2]
[353583173,1739934662071,-610.07237692,0.00016438,2]
[353583174,1739934662081,-2473.2,0.00016438,2]
[353583175,1739934662090,-1627.16,0.00016438,2]
[353583176,1739934662100,-500.0,0.00016438,2]
[353583177,1739934662110,-502.34852722,0.00016438,2]
[353583178,1739934662119,-500.0,0.00016438,2]
[353583179,1739934662129,-500.0,0.00016438,2]
[353583180,1739934662139,-500.0,0.00016438,2]
[353583181,1739934662148,-645.35,0.00016438,2]
[353583182,1739934662158,-500.0,0.00016438,2]
[353583183,1739934662167,-500.0,0.00016438,2]
[353583184,1739934662177,-500.0,0.00016438,2]
[353583185,1739934662187,-500.0,0.00016438,2]
[353583186,1739934662196,-738.28,0.00016438,2]
[353583187,1739934662206,-500.0,0.00016438,2]
[353583188,1739934662215,-500.0,0.00016438,2]
[353583189,1739934662225,-500.0,0.00016438,2]
[353583190,1739934662234,-5001.69,0.00016438,2]
[353583191,1739934662243,-500.0,0.00016438,2]
[353583192,1739934662252,-1322.05,0.00016438,2]
[353583193,1739934662262,-500.0,0.00016438,2]
[353583194,1739934662272,-340.35331275,0.00016438,2]
[353583195,1739934662281,-500.0,0.00016438,2]
[353583196,1739934662290,-1658.94,0.00016438,2]
[353583197,1739934662300,-709.73,0.00016438,2]
[353583198,1739934662309,-374.66039243,0.00016438,2]
[353583199,1739934662319,-661.87,0.00016438,2]
[353583200,1739934662328,-500.0,0.00016438,2]
[353583201,1739934662338,-1849.02,0.00016438,2]
[353583202,1739934662347,-500.0,0.00016438,2]
[353583203,1739934662357,-500.0,0.00016438,2]
[353583204,1739934662366,-500.0,0.00016438,2]
[353583205,1739934662375,-500.0,0.00016438,2]
[353583206,1739934662385,-2663.86,0.00016438,2]
[353583207,1739934662394,-500.0,0.00016438,2]
[353583208,1739934662403,-500.0,0.00016438,2]
[353583209,1739934662413,-506.63858468,0.00016438,2]
[353583210,1739934662422,-500.0,0.00016438,2]
[353583211,1739934662433,-500.0,0.00016438,2]
[353583212,1739934662442,-500.0,0.00016438,2]
[353583213,1739934662452,-500.0,0.00016438,2]
[353583214,1739934662461,-500.0,0.00016438,2]
[353583215,1739934662478,-500.0,0.00016438,2]
[353583216,1739934662487,-500.0,0.00016438,2]
[353583217,1739934662497,-500.0,0.00016438,2]
[353583218,1739934662506,-163.272796,0.00016438,2]
[353583219,1739934662517,-1272.16,0.00016438,2]
[353583220,1739934662525,-176.531744,0.00016438,2]
[353583221,1739934662533,-500.0,0.00016438,2]
[353583222,1739934662544,-176.531744,0.00016438,2]
[353583223,1739934662553,-500.0,0.00016438,2]
[353583224,1739934662563,-500.0,0.00016438,2]
[353583225,1739934662571,-3792.7,0.00016438,2]
[353583226,1739934662581,-500.0,0.00016438,2]
[353583227,1739934662590,-699.28,0.00016438,2]
[353583228,1739934662672,-500.82042511,0.00016438,2]
[353583229,1739934662681,-951.88,0.00016438,2]
[353583230,1739934662695,-163.272796,0.00016438,2]
[353583231,1739934662709,-2185.03,0.00016438,2]
[353583232,1739934662722,-2391.76,0.00016438,2]
[353583233,1739934662736,-176.531744,0.00016438,2]
[353583234,1739934662747,-500.0,0.00016438,2]
[353583235,1739934662760,-176.531744,0.00016438,2]
[353583236,1739934662774,-500.0,0.00016438,2]
[353583237,1739934662783,-500.0,0.00016438,2]
[353583238,1739934662792,-500.0,0.00016438,2]
[353583239,1739934662801,-500.0,0.00016438,2]
[353583240,1739934662811,-500.55682449,0.00016438,2]
[353583241,1739934662820,-2253.74,0.00016438,2]
[353583242,1739934662829,-2401.5,0.00016438,2]
[353583243,1739934662838,-500.0,0.00016438,2]
[353583244,1739934662847,-500.0,0.00016438,2]
[353583245,1739934662856,-504.50337073,0.00016438,2]
[353583246,1739934662865,-599.72807189,0.00016438,2]
[353583247,1739934662873,-500.0,0.00016438,2]
[353583248,1739934662881,-500.0,0.00016438,2]
[353583249,1739934662889,-500.56006269,0.00016438,2]
[353583250,1739934662898,-1420.05,0.00016438,2]
[353583251,1739934662907,-500.0,0.00016438,2]
[353583252,1739934662915,-500.0,0.00016438,2]
[353583253,1739934662923,-1061.82,0.00016438,2]
[353583254,1739934662931,-500.0,0.00016438,2]
[353583255,1739934662940,-500.0,0.00016438,2]
[353583256,1739934662949,-3375.92,0.00016438,2]
[353583257,1739934662958,-500.0,0.00016438,2]
[353583258,1739934662967,-500.0,0.00016438,2]
[353583259,1739934662975,-500.0,0.00016438,2]
[353583260,1739934662984,-500.0,0.00016438,2]
[353583261,1739934662993,-500.0,0.00016438,2]
[353583262,1739934663002,-2022.95,0.00016438,2]
[353583263,1739934663011,-500.58067673,0.00016438,2]
[353583264,1739934663020,-709.57,0.00016438,2]
[353583265,1739934663029,-4741.14,0.00016438,2]
[353583266,1739934663038,-1498.26,0.00016438,2]
[353583267,1739934663047,-500.0,0.00016438,2]
[353583268,1739934663057,-500.0,0.00016438,2]
[353583269,1739934663068,-1132.1,0.00016438,2]
[353583270,1739934663078,-500.0,0.00016438,2]
[353583271,1739934663088,-587.01,0.00016438,2]
[353583272,1739934663098,-500.0,0.00016438,2]
[353583273,1739934663108,-500.0,0.00016438,2]
[353583274,1739934663117,-523.49676011,0.00016438,2]
[353583275,1739934663127,-500.0,0.00016438,2]
[353583276,1739934663137,-500.0,0.00016438,2]
[353583277,1739934663147,-617.94,0.00016438,2]
[353583278,1739934663156,-223.05379447,0.00016438,2]
[353583279,1739934663166,-1724.76,0.00016438,2]
[353583280,1739934663176,-1667.55,0.00016438,2]
[353583281,1739934663185,-276.92792913,0.00016438,2]
[353583282,1739934663746,-486.36207087,0.00016438,2]
[353583283,1739934663757,-2470.21,0.00016438,2]
[353583284,1739934663767,-709.77,0.00016438,2]
[353583285,1739934663777,-500.0,0.00016438,2]
[353583286,1739934663787,-500.0,0.00016438,2]
[353583287,1739934663797,-500.0,0.00016438,2]
[353583288,1739934663807,-500.0,0.00016438,2]
[353583289,1739934663818,-500.0,0.00016438,2]
[353583290,1739934663829,-252.71754339,0.00016438,2]
[353583291,1739934912242,4516.0,0.00020602,120]
[353583292,1739935144870,4000.0,0.0002,120]
[353583293,1739935196019,168.32,8.767e-05,2]
[353583295,1739935207961,161.0,0.0002,120]
[353583328,1739935652082,-150.0,9.999e-05,2]
[353583329,1739935652105,-180.74682582,9.999e-05,2]
[353583330,1739935652129,-3990.25317418,0.0001,2]
[353583331,1739935669126,172.92407096,0.0002,120]
[353583350,1739935831452,-400.86620647,0.0001,2]
[353583354,1739935831479,-4854.80019754,0.0001,2]
[353583356,1739935831642,-1826869.27436282,0.0001,2]
[353583357,1739935831653,-3860.02648129,0.0001,2]
[353583358,1739935831698,-517.59043303,0.0001,2]
[353583359,1739935831709,-1504549.79946882,0.0001,2]
[353583360,1739935831718,-749353.79135264,0.0001,2]
[353583554,1739935839736,-272.48463389,0.0001,2]
[353583555,1739935840110,-258.09569564,0.0001,2]
[353583597,1739935842603,-14572.07514209,0.0001,2]
[353583598,1739935842773,-5956.16542417,0.0001,2]
[353583613,1739936229024,157.2,8.767e-05,2]
[353583614,1739936347159,2369.0,0.000205,120]
[353583620,1739936827088,427.0,0.000205,120]
[353583653,1739937031813,-368.49929451,9.771e-05,2]
[353583654,1739937031846,-235.27070549,9.771e-05,2]
[353583655,1739937031856,-122.10779635,0.0001,2]
[353583656,1739937031868,-426.36644233,0.0001,2]
[353583657,1739937031885,-136404.05813906,0.0001,2]
[353583658,1739937031919,-3287.54340758,0.0001,2]
[353583659,1739937031930,-2200.49300248,0.0001,2]
[353583660,1739937031941,-227630.76850776,0.0001,2]
[353583661,1739937031950,-4063.42408746,0.0001,2]
[353583662,1739937031960,-4506.06757411,0.0001,2]
[353583663,1739937031982,-493.93242589,0.0001,2]
[353583664,1739937031992,-213.50020715,0.0001,2]
[353583665,1739937032004,-301.32198778,0.0001,2]
[353583666,1739937032014,-1892.46609,0.0001,2]
[353583667,1739937032024,-150.0,0.00010986,2]
[353583668,1739937032034,-5000.0,0.00011,2]
[353583669,1739937032044,-5017.1787667,0.00011099,2]
[353583670,1739937032053,-5017.17876661,0.00011099,2]
[353583671,1739937032063,-5017.17876661,0.00011574,2]
[353583672,1739937032072,-23900.0,0.00011616,2]
[353583673,1739937032083,-315.40493445,0.00011935,2]
[353583674,1739937032092,-603.77,0.00012035,2]
[353583675,1739937032101,-1000.0,0.00012049,2]
[353583676,1739937032111,-214.16,0.00012111,2]
[353583677,1739937032120,-250.0,0.00012158,2]
[353583678,1739937032129,-250.42070933,0.00012185,2]
[353583679,1739937032139,-150.0,0.00012229,2]
[353583680,1739937032148,-169.26,0.0001223,2]
[353583681,1739937032158,-166.09,0.00012241,2]
[353583682,1739937032168,-1892.46609,0.000124,2]
[353583683,1739937032177,-5017.17876661,0.00012411,2]
[353583684,1739937032187,-155.07,0.00012456,2]
[353583685,1739937032197,-742.9964156,0.000125,2]
[353583686,1739937032207,-5000.0,0.000125,2]
[353583687,1739937032217,-496.88,0.00012639,2]
[353583688,1739937032226,-490.14,0.00012639,2]
[353583689,1739937032235,-493.86,0.00012639,2]
[353583690,1739937032244,-503.64,0.00012639,2]
[353583691,1739937032254,-504.53,0.00012639,2]
[353583692,1739937032264,-503.1,0.00012639,2]
[353583693,1739937032273,-499.8,0.00012639,2]
[353583694,1739937032286,-509.76,0.00012639,2]
[353583695,1739937032295,-496.5,0.00012639,2]
[353583696,1739937032305,-509.07,0.00012639,2]
[353583697,1739937032316,-490.33,0.00012639,2]
[353583698,1739937032328,-491.29,0.00012639,2]
[353583699,1739937032337,-505.26,0.00012639,2]
[353583700,1739937032348,-499.31,0.00012639,2]
[353583701,1739937032358,-707.60686631,0.00012823,2]
[353583702,1739937032388,-277.224,0.00012823,2]
[353583703,1739937032404,-2007.24781503,0.00012823,2]
[353583708,1739937037556,-898.71792959,0.00012823,2]
[353583710,1739937037568,-869.99996484,0.00012823,2]
[353583712,1739937037579,-576.20342423,0.00012823,2]
[353583715,1739937037589,-150.0,0.00012859,2]
[353583716,1739937037599,-550.0,0.00013,2]
[353583717,1739937037609,-5000.0,0.00013,2]
[353583718,1739937037618,-500.39918109,0.00013043,2]
[353583719,1739937037627,-150.0,0.00013146,2]
[353583720,1739937037637,-5017.17876661,0.00013248,2]
[353583721,1739937037647,-1000.0,0.00013555,2]
[353583722,1739937037656,-424.30919672,0.000136,2]
[353583723,1739937037665,-424.30919668,0.000136,2]
[353583724,1739937037674,-424.30919668,0.000136,2]
[353583725,1739937037684,-424.30919668,0.000136,2]
[353583726,1739937037693,-151.0,0.00013699,2]
[353583727,1739937037702,-200.0,0.00013699,2]
[353583728,1739937037712,-169.99,0.00013699,2]
[353583729,1739937037721,-2652.99184131,0.00013699,2]
[353583730,1739937037732,-1030.0,0.00013699,2]
[353583731,1739937037754,-2332.32815869,0.00013699,2]
[353583732,1739937037763,-5313.39,0.00013699,2]
[353583733,1739937037772,-392.63,0.00013699,2]
[353583734,1739937037781,-169.26,0.00013758,2]
[353583735,1739937037791,-357.65794619,0.000139,2]
[353583736,1739937037800,-2182.96517839,0.00014,2]
[353583743,1739937037873,-345.84821627,0.00014,2]
[353583745,1739937037884,-2471.18660534,0.00014,2]
[353583747,1739937037894,-155.07,0.00014013,2]
[353583749,1739937037904,-616.74595768,0.00014021,2]
[353583751,1739937037913,-165.28101263,0.00014022,2]
[353583753,1739937037923,-522.62813931,0.00014022,2]
[353583755,1739937037932,-1832.26413297,0.00014022,2]
[353583757,1739937037944,-3624.77884433,0.00014022,2]
[353583759,1739937037953,-5017.17876661,0.00014086,2]
[353583760,1739937037963,-10800.22093886,0.000141,3]
[353583761,1739937037975,-8257.50663155,0.000141,3]
[353583762,1739937037986,-9553.04005146,0.000141,3]
[353583929,1739937039868,-424.30919668,0.000136,2]
[353583932,1739937039879,-495.68719811,0.000141,3]
[353583943,1739937039976,-35383.30096455,0.000141,3]
[353583955,1739937040080,-2865.5,0.000141,3]
[353583967,1739937040188,-12034.848552,0.000141,3]
[353584045,1739937043285,-1344.80486468,0.000141,3]
[353584046,1739937043578,-254.39513532,0.000141,3]
[353584051,1739937045697,-424.30919668,0.000136,2]
[353584052,1739937045707,-743.77510132,0.000141,3]
[353584053,1739937046006,-608.83533071,0.000141,3]
[353584056,1739937442131,171.23,8.767e-05,2]
[353584057,1739937459304,3.25,8.953e-05,2]
[353584058,1739937459325,500.0,8.953e-05,2]
[353584059,1739937459345,500.0,8.953e-05,2]
[353584060,1739937459365,500.0,8.953e-05,2]
[353584061,1739937459725,500.0,8.953e-05,2]
[353584062,1739937459751,500.0,8.953e-05,2]
[353584063,1739937459773,500.0,8.953e-05,2]
[353584064,1739937459794,500.0,8.953e-05,2]
[353584065,1739937459819,500.0,8.953e-05,2]
[353584066,1739937459846,500.0,8.953e-05,2]
[353584067,1739937459868,500.0,8.953e-05,2]
[353584068,1739937459897,8000.0,8.953e-05,2]
[353584069,1739937459930,252628.37633042,8.953e-05,2]
[353584070,1739937689849,2965.13105446,0.00020594,120]
[353584071,1739937718752,2782.37233496,0.00020594,120]
[353584102,1739938231857,-595.53,0.00011564,2]
[353584103,1739938231867,-150.0,0.0001199,2]
[353584104,1739938231876,-503.1,0.00012662,2]
[353584105,1739938231886,-64.23736666,0.00012861,2]
[353584106,1739938231911,-440.43263334,0.00012861,2]
[353584107,1739938231920,-212.58776089,0.000129,2]
[353584108,1739938231930,-550.0,0.00013,2]
[353584109,1739938231939,-155.07,0.00013101,2]
[353584110,1739938231951,-141.90960577,0.00013142,2]
[353584111,1739938235303,-23758.09039423,0.00013142,2]
[353584112,1739938235313,-150.0,0.00013189,2]
[353584113,1739938235323,-166.09,0.00013291,2]
[353584114,1739938235333,-1000.0,0.00013481,2]
[353584115,1739938235343,-169.99,0.00013699,2]
[353584116,1739938235354,-200.0,0.00013699,2]
[353584117,1739938235363,-212.58776089,0.000138,2]
[353584118,1739938235373,-595.53,0.00013828,2]
[353584119,1739938235382,-849.6419,0.000139,2]
[353584120,1739938235392,-14588.0716,0.000139,2]
[353584121,1739938235401,-222.5747,0.000139,2]
[353584122,1739938235411,-31057.1881,0.000139,2]
[353584123,1739938235420,-297.01643779,0.000139,2]
[353584124,1739938235430,-5788.07017174,0.000139,2]
[353584149,1739938235673,-11114.2143,0.00014,2]
[353584154,1739938235703,-1000.0,0.00014,2]
[353584157,1739938235712,-2463.577,0.00014,2]
[353584160,1739938235723,-85731.1268,0.00014,2]
[353584162,1739938235734,-215.16998669,0.00014,2]
[353584164,1739938235743,-538.9305,0.00014,2]
[353584165,1739938235751,-2006.87150668,0.00014,2]
[353584166,1739938235760,-1000.0,0.00014,2]
[353584167,1739938235769,-315.40493444,0.00014,2]
[353584168,1739938235778,-1589.78,0.00014,2]
[353584169,1739938235787,-297.01643767,0.00014043,2]
[353584170,1739938235796,-1261.64406,0.00014086,2]
[353584171,1739938235805,-5000.0,0.00014087,2]
[353584172,1739938235814,-3638.02865154,0.00014087,2]
[353584173,1739938235823,-154003.1477747,0.000141,3]
[353584305,1739938239946,-603.97984,0.000141,3]
[353584306,1739938240151,-380.06792405,0.000141,3]
[353584307,1739938240163,-386.70834178,0.000141,3]
[353584308,1739938240175,-548.4646391,0.000141,3]
[353584328,1739938242975,-508.92,0.00013142,2]
[353584329,1739938242984,-5000.0,0.00014086,2]
[353584330,1739938242994,-13692.18,0.000141,3]
[353584338,1739938245746,-68996.68266054,0.000141,3]
[353584340,1739938246057,-7321.95849467,0.000141,3]
[353584347,1739938344903,260.0,0.0002,120]
[353584352,1739938528427,165.96,8.767e-05,2]
[353584353,1739938538759,820.94235704,0.0002,120]
[353584407,1739939431964,-799.99997,0.0001,2]
[353584408,1739939431976,-1671.13242083,0.0001,2]
[353584409,1739939431987,-1086.4524651,0.0001,2]
[353584410,1739939431999,-349229.76301637,0.0001,2]
[353584411,1739939432010,-742.47411455,0.0001,2]
[353584412,1739939432034,-170795.09587442,0.0001,2]
[353584413,1739939432043,-314.5846605,0.000103,2]
[353584414,1739939432053,-212.58776089,0.000104,2]
[353584415,1739939432062,-500.0,0.000105,2]
[353584416,1739939432072,-159.79739725,0.000109,2]
[353584417,1739939432081,-150.0,0.00011,2]
[353584418,1739939432090,-500.0,0.00011,2]
[353584419,1739939432099,-6863.79483748,0.00011099,2]
[353584420,1739939432109,-6863.79483743,0.00011151,2]
[353584421,1739939432119,-2006.87150668,0.00011278,2]
[353584422,1739939432128,-3638.02865154,0.00011378,2]
[353584423,1739939432138,-145320.848584,0.00011478,2]
[353584424,1739939432148,-80824.75814138,0.00011478,10]
[353584425,1739939432157,-629.82,0.00011478,2]
[353584426,1739939432167,-6863.79483743,0.00011902,2]
[353584427,1739939432177,-2006.87150664,0.00011932,2]
[353584428,1739939432186,-150.0,0.00012376,2]
[353584429,1739939432196,-2006.87150664,0.00012585,2]
[353584430,1739939432206,-6863.79483743,0.00012653,2]
[353584431,1739939432217,-15761.34,0.00012662,2]
[353584432,1739939432228,-500.0,0.00012685,2]
[353584433,1739939432237,-3638.02865153,0.00012689,2]
[353584434,1739939432247,-165.1,0.0001273,2]
[353584435,1739939432257,-1000.0,0.0001281,2]
[353584436,1739939432267,-250.0,0.00012907,2]
[353584437,1739939432277,-500.47,0.00013042,2]
[353584438,1739939432287,-506.37,0.00013042,2]
[353584439,1739939432296,-494.14,0.00013042,2]
[353584440,1739939432305,-506.8,0.00013042,2]
[353584441,1739939432314,-499.64,0.00013042,2]
[353584442,1739939432324,-503.59,0.00013042,2]
[353584443,1739939432334,-498.06,0.00013042,2]
[353584444,1739939432343,-491.76,0.00013042,2]
[353584445,1739939432354,-503.47,0.00013042,2]
[353584447,1739939432364,-497.66,0.00013042,2]
[353584449,1739939432373,-505.76,0.00013042,2]
[353584451,1739939432383,-497.33,0.00013042,2]
[353584453,1739939432392,-503.47,0.00013042,2]
[353584455,1739939432402,-492.04,0.00013042,2]
[353584457,1739939432412,-500.0,0.00013238,2]
[353584459,1739939432422,-500.0,0.00013238,2]
[353584461,1739939432431,-500.0,0.00013238,2]
[353584463,1739939432441,-508.84498305,0.00013238,2]
[353584465,1739939432451,-294.40052903,0.00013238,2]
[353584467,1739939432461,-548.05475944,0.00013238,2]
[353584470,1739939432471,-2006.87150664,0.00013239,2]
[353584472,1739939432481,-150.0,0.00013278,2]
[353584474,1739939432490,-150.0,0.00013278,2]
[353584476,1739939432500,-439.19,0.00013278,2]
[353584478,1739939432510,-150.0,0.00013278,2]
[353584480,1739939432519,-150.0,0.00013278,2]
[353584482,1739939432528,-150.0,0.00013278,2]
[353584484,1739939432538,-150.0,0.00013278,2]
[353584486,1739939432547,-439.19,0.00013278,2]
[353584488,1739939432556,-150.0,0.00013278,2]
[353584490,1739939432565,-150.0,0.00013278,2]
[353584492,1739939432575,-150.0,0.00013278,2]
[353584494,1739939432585,-439.19,0.00013278,2]
[353584496,1739939432595,-150.0,0.00013278,2]
[353584498,1739939432605,-150.0,0.00013278,2]
[353584500,1739939432614,-150.0,0.00013278,2]
[353584502,1739939432623,-440.22,0.00013341,2]
[353584504,1739939432633,-288.18,0.00013378,2]
[353584506,1739939432642,-150.0,0.00013378,2]
[353584508,1739939432652,-150.0,0.00013378,2]
[353584510,1739939432662,-151.0,0.00013378,2]
[353584512,1739939432672,-150.99,0.00013378,2]
[353584514,1739939432681,-439.19,0.00013378,2]
[353584516,1739939432691,-1673.72,0.00013378,2]
[353584518,1739939432700,-157.11,0.00013379,2]
[353584520,1739939432711,-157.11,0.00013398,2]
[353584522,1739939432721,-6863.79483743,0.00013404,2]
[353584524,1739939432730,-157.11,0.00013417,2]
[353584526,1739939432740,-157.11,0.00013436,2]
[353584528,1739939432749,-157.11,0.00013455,2]
[353584530,1739939432759,-3926.7751,0.00013471,2]
[353584532,1739939432768,-157.11,0.00013474,2]
[353584535,1739939432778,-157.11,0.00013493,2]
[353584536,1739939432788,-268.85413663,0.000135,5]
[353584538,1739939432797,-157.11,0.00013513,2]
[353584540,1739939432807,-491.82,0.00013571,2]
[353584542,1739939432816,-30000.0,0.00013571,2]
[353584545,1739939432826,-301.37029839,0.000136,2]
[353584547,1739939432835,-169.99,0.00013699,2]
[353584548,1739939432846,-629.82,0.00013742,2]
[353584550,1739939432856,-538.9305,0.000138,2]
[353584553,1739939432865,-1463.6948242,0.00013805,2]
[353584554,1739939432874,-180.84,0.00013814,2]
[353584556,1739939432884,-2006.87150664,0.00013892,2]
[353584558,1739939432893,-8024.305894,0.000139,2]
[353584560,1739939432902,-509.44,0.000139,2]
[353584562,1739939432912,-506.36,0.000139,2]
[353584564,1739939432921,-1000.0,0.000139,2]
[353584566,1739939432930,-100918.7655,0.000139,2]
[353584568,1739939432940,-104171.75682281,0.000139,2]
[353584571,1739939432953,-11259.25517754,0.000139,2]
[353584573,1739939432963,-685.72347718,0.000139,2]
[353584575,1739939432972,-150.0,0.00013973,2]
[353584577,1739939432982,-150.0,0.00013973,2]
[353584579,1739939432991,-304.8,0.00013973,2]
[353584581,1739939433001,-409.01732807,0.0001399,2]